[Event "XXII Rochefort Chess Masters"]
[Site "ROCHEFORT, France"]
[Date "2024.02.21"]
[Round "7.5"]
[White "Larkin, Vladyslav"]
[Black "Favarel, Julien"]
[Result "1/2-1/2"]
[TimeControl "1h30/40 - 30' + [30'']"]
[WhiteElo "2460"]
[BlackElo "2294"]

1. d4 {[%clk 01:14:17]} {[%emt 00:00:20]} Nf6 {[%clk 01:30:50]} {[%emt
00:00:11]} 2. Bf4 {[%clk 01:14:39]} {[%emt 00:00:07]} g6 {[%emt 00:00:28]} 3.
e3 {[%clk 01:14:38]} {[%emt 00:00:12]} Bg7 {[%clk 01:31:30]} {[%emt 00:00:12]}
4. h3 {[%clk 01:15:01]} {[%emt 00:00:06]} O-O {[%clk 01:31:00]} {[%emt
00:01:00]} 5. Nd2 {[%emt 00:06:38]} c5 {[%clk 01:18:51]} {[%emt 00:06:05]} 6.
c3 {[%emt 00:01:49]} b6 {[%clk 01:16:42]} {[%emt 00:00:56]} 7. a4 {[%emt
00:04:51]} Nc6 {[%clk 01:11:52]} {[%emt 00:01:04]} 8. Ngf3 {[%emt 00:00:41]}
Bb7 {[%clk 01:10:47]} {[%emt 00:01:05]} 9. Bh2 {[%clk 01:15:31]} {[%emt
00:01:03]} d6 {[%clk 01:08:53]} {[%emt 00:02:24]} 10. Be2 {[%emt 00:08:07]}
cxd4 {[%clk 01:02:49]} {[%emt 00:00:18]} 11. exd4 {[%emt 00:08:34]} e5 {[%emt
00:10:32]} 12. dxe5 {[%clk 01:01:59]} {[%emt 00:04:22]} dxe5 {[%clk 00:53:13]}
{[%emt 00:00:18]} 13. Nc4 {[%emt 00:12:47]} e4 {[%clk 00:39:46]} {[%emt
00:01:14]} 14. Nfd2 {[%emt 00:02:51]} Ne7 {[%emt 00:04:17]} 15. a5 {[%emt
00:01:30]} Nf5 {[%emt 00:03:51]} 16. a6 {[%clk 00:57:00]} {[%emt 00:00:42]} Bd5
{[%clk 00:33:37]} {[%emt 00:01:23]} 17. Nf1 {[%emt 00:09:34]} Bxc4 {[%emt
00:06:47]} 18. Bxc4 {[%emt 00:00:23]} Qc8 {[%emt 00:02:47]} 19. Qe2 {[%emt
00:02:57]} Bh6 {[%emt 00:10:20]} 20. Ne3 {[%emt 00:03:34]} Bxe3 {[%clk
00:11:29]} {[%emt 00:01:44]} 21. fxe3 {[%emt 00:00:24]} Nh5 {[%emt 00:03:44]}
22. Kf2 {[%emt 00:05:15]} Qd8 {[%emt 00:03:46]} 23. Rhe1 {[%clk 00:40:46]} Qh4+
{[%clk 00:04:04]} {[%emt 00:01:29]} 24. Kg1 {[%clk 00:41:11]} {[%emt 00:00:05]}
Rad8 {[%emt 00:19:07]} 25. Bb5 {[%emt 00:01:59]} Nhg3 {[%emt 00:19:07]} 26. Qf2
{[%clk 00:00:59]} {[%emt 00:04:07]} Rd6 {[%clk 00:01:23]} {[%emt 00:01:02]} 27.
Rad1 {[%emt 00:00:31]} Rfd8 {[%clk 00:01:38]} {[%emt 00:00:02]} 28. Rxd6 {[%clk
00:01:19]} {[%emt 00:00:24]} Rxd6 {[%clk 00:02:07]} 29. Bc4 {[%clk 00:01:01]}
{[%emt 00:00:48]} h5 {[%emt 00:01:19]} 30. Bb3 {[%clk 00:00:45]} {[%emt
00:00:34]} Qg5 {[%emt 00:01:00]} 31. Bxg3 {[%emt 00:00:27]} Qxg3 {[%clk
00:01:35]} {[%emt 00:00:06]} 32. Qxg3 {[%clk 00:00:59]} {[%emt 00:00:09]} Nxg3
{[%clk 00:02:01]} {[%emt 00:00:04]} 33. Rd1 {[%clk 00:01:11]} {[%emt 00:00:17]}
Rxd1+ {[%clk 00:01:28]} {[%emt 00:01:03]} 34. Bxd1 {[%clk 00:01:37]} {[%emt
00:00:04]} Kf8 {[%clk 00:01:17]} {[%emt 00:00:41]} 35. Bb3 {[%clk 00:01:28]}
{[%emt 00:00:38]} Ke7 {[%emt 00:00:53]} 36. Bd5 {[%clk 00:01:37]} {[%emt
00:00:06]} h4 {[%clk 00:01:01]} {[%emt 00:00:38]} 37. Kf2 {[%clk 00:02:02]}
{[%emt 00:00:06]} f5 {[%emt 00:01:06]} 38. b4 {[%clk 00:01:15]} {[%emt
00:00:33]} Kd6 {[%emt 00:00:31]} 39. Bf7 {[%clk 00:01:26]} {[%emt 00:00:04]} g5
{[%clk 00:01:39]} {[%emt 00:00:14]} 40. c4 {[%clk 00:01:11]} {[%emt 00:00:45]}
Nh1+ {[%clk 00:01:26]} {[%emt 00:00:43]} 41. Kg1 {[%clk 00:00:55]} {[%emt
00:00:47]} Ng3 {[%clk 00:30:08]} {[%emt 00:01:48]} 42. Kf2 {[%emt 00:14:50]}
Kd7 {[%clk 00:12:56]} {[%emt 00:02:58]} 43. Bg6 {[%clk 00:30:34]} {[%emt
00:01:15]} f4 {[%clk 00:09:23]} {[%emt 00:04:03]} 44. Bh7 {[%clk 00:30:44]}
{[%emt 00:00:19]} Kd6 {[%clk 00:06:29]} {[%emt 00:03:24]} 45. Bg6 {[%emt
00:00:18]} Kc7 {[%clk 00:04:50]} {[%emt 00:01:59]} 46. Bh7 {[%clk 00:31:22]}
{[%emt 00:00:14]} Kd7 {[%clk 00:05:12]} {[%emt 00:00:08]} 47. Bg6 {[%clk
00:31:44]} {[%emt 00:00:08]} Kd6 {[%clk 00:05:36]} {[%emt 00:00:06]} 48. Bh7
{[%clk 00:32:09]} {[%emt 00:00:04]} Ke5 {[%emt 00:04:47]} 49. c5 {[%clk
00:30:15]} {[%emt 00:00:03]} b5 {[%clk 00:03:40]} {[%emt 00:00:30]} 50. Bg6
{[%clk 00:30:32]} {[%emt 00:00:14]} Nf5 {[%emt 00:09:49]} 51. Bxf5 {[%clk
00:15:03]} {[%emt 00:08:42]} Kxf5 {[%clk 00:02:02]} {[%emt 00:00:06]} 52. Ke2
{[%clk 00:15:14]} {[%emt 00:00:19]} Ke5 {[%clk 00:02:25]} {[%emt 00:00:08]} 53.
Kf2 {[%clk 00:15:36]} {[%emt 00:00:08]} Kd5 {[%clk 00:02:47]} {[%emt 00:00:08]}
54. Ke2 {[%clk 00:15:53]} {[%emt 00:00:13]} Ke5 {[%clk 00:03:10]} {[%emt
00:00:07]} 1/2-1/2

[Event "XXII Rochefort Chess Masters"]
[Site "ROCHEFORT, France"]
[Date "2024.02.21"]
[Round "7.1"]
[White "Droin, Augustin"]
[Black "Sivuk, Vitaly"]
[Result "1/2-1/2"]
[TimeControl "1h30/40 - 30' + [30'']"]
[WhiteElo "2471"]
[BlackElo "2520"]

1. e4 {[%emt 00:11:42]} e5 {[%clk 01:26:22]} {[%emt 00:00:11]} 2. Nf3 {[%clk
01:24:10]} {[%emt 00:00:05]} Nc6 {[%clk 01:26:46]} {[%emt 00:00:06]} 3. Bb5
{[%emt 00:00:48]} a6 {[%emt 00:00:07]} 4. Ba4 {[%emt 00:00:09]} Nf6 {[%emt
00:00:07]} 5. O-O {[%clk 01:25:23]} {[%emt 00:00:02]} Be7 {[%clk 01:27:12]}
{[%emt 00:00:06]} 6. Re1 {[%clk 01:25:49]} {[%emt 00:00:05]} b5 {[%clk
01:27:33]} {[%emt 00:00:09]} 7. Bb3 {[%clk 01:26:16]} {[%emt 00:00:04]} O-O
{[%emt 00:00:17]} 8. a4 {[%emt 00:00:13]} Bb7 {[%clk 01:27:56]} {[%emt
00:00:15]} 9. d3 {[%clk 01:27:01]} {[%emt 00:00:06]} d6 {[%emt 00:00:11]} 10.
Bd2 {[%emt 00:00:15]} Qd7 {[%emt 00:00:05]} 11. Nc3 {[%emt 00:01:04]} Na5
{[%clk 01:27:57]} {[%emt 00:00:05]} 12. Ba2 {[%emt 00:00:13]} b4 {[%clk
01:28:13]} {[%emt 00:00:09]} 13. Ne2 {[%clk 01:28:38]} {[%emt 00:00:05]} c5
{[%clk 01:28:32]} {[%emt 00:00:10]} 14. Ng3 {[%emt 00:01:14]} Rab8 {[%emt
00:05:40]} 15. h3 {[%emt 00:05:59]} Bc6 {[%emt 00:20:49]} 16. Bc4 {[%emt
00:02:18]} Nxc4 {[%emt 00:02:53]} 17. dxc4 {[%emt 00:02:53]} Ne8 {[%emt
00:13:31]} 18. b3 {[%emt 00:02:17]} g6 {[%clk 01:14:50]} {[%emt 00:00:23]} 19.
Bh6 {[%clk 00:49:33]} {[%emt 00:00:21]} Ng7 {[%emt 00:05:47]} 20. Qd3 {[%emt
00:22:21]} f5 {[%emt 00:00:41]} 21. Rad1 {[%emt 00:03:08]} Rbd8 {[%emt
00:04:28]} 22. c3 {[%emt 00:03:07]} f4 {[%emt 00:01:45]} 23. Nf1 {[%clk
00:38:32]} {[%emt 00:00:31]} Qb7 {[%clk 00:48:06]} {[%emt 00:00:28]} 24. cxb4
{[%clk 00:38:44]} {[%emt 00:00:19]} Qxb4 {[%emt 00:03:24]} 25. g3 {[%emt
00:12:14]} fxg3 {[%clk 00:41:02]} {[%emt 00:00:16]} 26. fxg3 {[%emt 00:00:09]}
Rf7 {[%emt 00:00:44]} 27. Bxg7 {[%clk 00:32:17]} {[%emt 00:00:02]} Kxg7 {[%emt
00:01:17]} 28. N1d2 {[%emt 00:04:19]} Rdf8 {[%clk 00:37:55]} {[%emt 00:00:19]}
29. Rf1 {[%emt 00:04:29]} Qb7 {[%emt 00:06:10]} 30. Kg2 {[%emt 00:00:44]} h5
{[%emt 00:01:10]} 31. h4 {[%emt 00:06:48]} Qc8 {[%clk 00:28:03]} {[%emt
00:00:06]} 32. Nh2 {[%emt 00:06:37]} Qe6 {[%clk 00:21:02]} {[%emt 00:03:29]} 33.
Rxf7+ {[%clk 00:22:02]} {[%emt 00:00:29]} Rxf7 {[%emt 00:05:11]} 34. Rf1 {[%emt
00:03:22]} Rxf1 {[%emt 00:02:07]} 35. Nhxf1 {[%emt 00:03:03]} Bd7 {[%emt
00:02:28]} 36. Nf3 {[%emt 00:01:05]} Qh3+ {[%clk 00:15:36]} {[%emt 00:01:21]}
37. Kg1 {[%emt 00:06:42]} Bc6 {[%clk 00:08:52]} {[%emt 00:01:36]} 38. Kf2
{[%clk 00:10:19]} {[%emt 00:01:57]} Qg4 {[%emt 00:01:04]} 39. N3d2 {[%clk
00:10:21]} {[%emt 00:00:21]} Qh3 {[%clk 00:06:29]} {[%emt 00:02:26]} 40. Qf3
{[%emt 00:04:25]} Bd8 {[%emt 00:07:25]} 41. Qd3 {[%clk 00:00:31]} {[%emt
00:01:06]} Be7 {[%emt 00:01:14]} 42. Nf3 {[%emt 00:03:41]} Qg4 {[%clk
00:34:40]} {[%emt 00:00:03]} 43. N1d2 {[%emt 00:02:29]} Kf7 {[%emt 00:02:01]}
44. Kg2 {[%clk 00:25:53]} {[%emt 00:01:44]} Ke8 {[%emt 00:02:41]} 45. Nh2
{[%emt 00:08:18]} Qe6 {[%emt 00:01:59]} 46. Qf3 {[%emt 00:02:52]} Qf7 {[%emt
00:03:48]} 47. Qe3 {[%emt 00:01:57]} Qf5 {[%clk 00:18:15]} {[%emt 00:01:18]} 48.
Kg1 {[%emt 00:00:54]} Qh3 {[%emt 00:02:18]} 49. Qf3 {[%emt 00:04:41]} g5 {[%emt
00:05:14]} 50. Qxh5+ {[%clk 00:13:02]} {[%emt 00:00:30]} Kd8 {[%clk 00:14:01]}
{[%emt 00:00:11]} 51. Nhf1 {[%clk 00:13:05]} {[%emt 00:00:29]} gxh4 {[%clk
00:14:18]} {[%emt 00:00:12]} 52. Qh8+ {[%emt 00:01:10]} Kd7 {[%clk 00:13:34]}
{[%emt 00:00:13]} 53. Qh5 {[%emt 00:01:11]} Kc7 {[%emt 00:01:09]} 54. Qh7
{[%emt 00:04:09]} Kd8 {[%clk 00:07:01]} {[%emt 00:02:06]} 55. Qg8+ {[%emt
00:02:20]} Kc7 {[%clk 00:06:44]} {[%emt 00:00:38]} 56. Qh7 {[%clk 00:12:06]}
{[%emt 00:00:08]} Kd8 {[%clk 00:07:08]} {[%emt 00:00:06]} 57. Qg8+ {[%clk
00:12:33]} {[%emt 00:00:04]} 1/2-1/2

[Event "XXII Rochefort Chess Masters"]
[Site "ROCHEFORT, France"]
[Date "2024.02.22"]
[Round "8.1"]
[White "Sivuk, Vitaly"]
[Black "Romanov, Evgeny"]
[Result "1-0"]
[TimeControl "1h30/40 - 30' + [30'']"]
[WhiteElo "2520"]
[BlackElo "2593"]

1. d4 {[%emt 00:03:18]} Nf6 {[%clk 01:27:36]} {[%emt 00:00:08]} 2. c4 {[%clk
01:21:18]} {[%emt 00:00:52]} e6 {[%clk 01:27:55]} {[%emt 00:00:10]} 3. Nc3
{[%clk 01:21:39]} {[%emt 00:00:09]} d5 {[%clk 01:28:16]} {[%emt 00:00:09]} 4.
cxd5 {[%clk 01:21:58]} {[%emt 00:00:11]} exd5 {[%clk 01:28:36]} {[%emt
00:00:10]} 5. Bg5 {[%emt 00:00:27]} Be7 {[%clk 01:28:18]} {[%emt 00:00:29]} 6.
e3 {[%emt 00:00:19]} O-O {[%clk 01:28:38]} {[%emt 00:00:03]} 7. Bd3 {[%clk
01:22:56]} {[%emt 00:00:12]} Re8 {[%emt 00:00:36]} 8. Nf3 {[%emt 00:01:22]} h6
{[%clk 01:27:51]} {[%emt 00:00:12]} 9. Bf4 {[%emt 00:05:45]} c5 {[%clk
01:21:41]} {[%emt 00:01:04]} 10. dxc5 {[%emt 00:00:18]} Bxc5 {[%clk 01:21:43]}
{[%emt 00:00:24]} 11. O-O {[%emt 00:00:55]} Nc6 {[%clk 01:21:23]} {[%emt
00:00:05]} 12. h3 {[%emt 00:08:51]} a6 {[%clk 01:12:22]} {[%emt 00:00:47]} 13.
Rc1 {[%emt 00:00:40]} Ba7 {[%clk 01:12:04]} {[%emt 00:00:28]} 14. Ne2 {[%emt
00:02:43]} Bd7 {[%emt 00:05:49]} 15. Qb3 {[%emt 00:02:58]} b5 {[%emt 00:02:07]}
16. Ned4 {[%emt 00:08:50]} Rc8 {[%emt 00:08:24]} 17. Nxc6 {[%clk 01:07:57]}
{[%emt 00:03:17]} Bxc6 {[%emt 00:15:20]} 18. Bf5 {[%emt 00:01:57]} Bd7 {[%emt
00:15:46]} 19. Rxc8 {[%emt 00:00:54]} Qxc8 {[%clk 00:57:17]} {[%emt 00:00:07]}
20. Bxd7 {[%clk 00:37:29]} {[%emt 00:00:09]} Qxd7 {[%emt 00:03:20]} 21. Rd1
{[%emt 00:05:36]} Rd8 {[%emt 00:01:48]} 22. Be5 {[%emt 00:00:41]} Ne4 {[%emt
00:03:43]} 23. Rc1 {[%emt 00:06:49]} Bc5 {[%emt 00:02:37]} 24. Qc2 {[%emt
00:07:45]} Qe6 {[%emt 00:02:32]} 25. a3 {[%emt 00:15:16]} g5 {[%emt 00:09:45]}
26. b4 {[%clk 00:16:14]} {[%emt 00:00:28]} Bf8 {[%emt 00:00:40]} 27. Qc6 {[%emt
00:01:41]} Qf5 {[%emt 00:01:12]} 28. Rc2 {[%emt 00:14:30]} Nd6 {[%emt
00:02:19]} 29. Bxd6 {[%clk 00:12:44]} {[%emt 00:00:05]} Rxd6 {[%emt 00:00:35]}
30. Qc8 {[%emt 00:01:35]} Qd3 {[%emt 00:03:35]} 31. Nd4 {[%emt 00:06:07]} Rf6
{[%emt 00:08:10]} 32. Qd8 {[%emt 00:00:12]} Kg7 {[%emt 00:00:40]} 33. g4 {[%emt
00:04:10]} Qxa3 {[%emt 00:00:55]} 34. Rc8 {[%emt 00:00:57]} Qxb4 {[%clk
00:00:50]} {[%emt 00:00:06]} 35. Nf5+ {[%clk 00:01:03]} {[%emt 00:00:04]} Rxf5
{[%clk 00:01:12]} {[%emt 00:00:08]} 36. gxf5 {[%clk 00:01:43]} {[%emt
00:00:54]} a5 37. f6+ {[%clk 00:01:52]} {[%emt 00:00:19]} Kg8 38. Qe7 {[%emt
00:00:55]} 1-0

[Event "XXII Rochefort Chess Masters"]
[Site "ROCHEFORT, France"]
[Date "2024.02.22"]
[Round "8.4"]
[White "Laurent-Paoli, Pierre"]
[Black "Mullon, Jean-Baptiste"]
[Result "1/2-1/2"]
[TimeControl "1h30/40 - 30' + [30'']"]
[WhiteElo "2537"]
[BlackElo "2304"]

1. d4 {[%clk 01:22:58]} {[%emt 00:08:00]} d5 {[%emt 00:00:25]} 2. c4 {[%clk
01:23:03]} {[%emt 00:00:14]} c6 {[%clk 01:31:12]} {[%emt 00:00:06]} 3. Nf3
{[%clk 01:23:23]} {[%emt 00:00:10]} Nf6 {[%emt 00:00:35]} 4. Nc3 {[%emt
00:00:12]} dxc4 {[%emt 00:00:06]} 5. a4 {[%clk 01:23:42]} {[%emt 00:00:10]} Bf5
{[%emt 00:00:55]} 6. Ne5 {[%emt 00:03:01]} Nbd7 {[%emt 00:00:26]} 7. Nxc4
{[%emt 00:02:00]} Qc7 {[%clk 01:27:48]} {[%emt 00:00:12]} 8. g3 {[%clk
01:23:52]} {[%emt 00:00:17]} e5 {[%emt 00:00:19]} 9. dxe5 {[%clk 01:24:15]}
{[%emt 00:00:07]} Nxe5 {[%clk 01:28:24]} {[%emt 00:00:06]} 10. Bf4 {[%emt
00:00:10]} Nfd7 {[%emt 00:00:41]} 11. Bg2 {[%emt 00:08:58]} g5 {[%emt
00:00:55]} 12. Nxe5 {[%emt 00:03:12]} gxf4 {[%clk 01:17:21]} {[%emt 00:00:05]}
13. Nxd7 {[%emt 00:03:29]} Bxd7 {[%emt 00:03:11]} 14. Qd4 {[%clk 01:22:07]}
{[%emt 00:00:13]} Rg8 {[%emt 00:09:19]} 15. Bf3 {[%emt 00:18:37]} Bg7 {[%emt
00:01:55]} 16. Qxf4 {[%clk 01:10:26]} {[%emt 00:01:36]} Qxf4 {[%clk 00:55:49]}
{[%emt 00:01:03]} 17. gxf4 {[%clk 01:10:54]} {[%emt 00:00:03]} Be6 {[%emt
00:04:35]} 18. a5 {[%emt 00:04:19]} O-O-O {[%emt 00:04:07]} 19. a6 {[%emt
00:00:46]} Bxc3+ {[%clk 00:53:49]} {[%emt 00:00:02]} 20. bxc3 {[%clk 01:01:55]}
{[%emt 00:00:09]} Bd5 {[%emt 00:07:13]} 21. Bxd5 {[%clk 00:54:36]} {[%emt
00:00:41]} Rxd5 {[%clk 00:54:37]} {[%emt 00:00:08]} 22. axb7+ {[%emt 00:00:19]}
Kxb7 {[%emt 00:00:35]} 23. e3 {[%emt 00:01:33]} a5 {[%emt 00:00:35]} 24. Ke2
{[%emt 00:05:23]} Rgd8 {[%emt 00:05:42]} 25. Rhg1 {[%emt 00:04:06]} R8d7 {[%emt
00:08:08]} 26. Rg7 {[%emt 00:02:13]} h6 {[%emt 00:00:24]} 27. Rh7 {[%emt
00:17:16]} Kb6 {[%emt 00:01:14]} 28. Rxh6 {[%emt 00:00:46]} Rd2+ {[%emt
00:00:53]} 29. Kf3 {[%emt 00:02:39]} Rc2 {[%emt 00:08:56]} 30. Rb1+ {[%clk
00:32:40]} {[%emt 00:00:32]} Kc7 {[%clk 00:24:11]} {[%emt 00:00:08]} 31. Rh5
{[%emt 00:00:38]} Rdd2 {[%emt 00:11:20]} 32. Rxa5 {[%emt 00:00:16]} Rxf2+
{[%emt 00:00:16]} 33. Ke4 {[%emt 00:02:07]} Rxc3 {[%emt 00:04:01]} 34. Kd4
{[%emt 00:00:18]} Rfc2 {[%emt 00:00:40]} 35. Ra7+ {[%clk 00:20:09]} {[%emt
00:00:02]} Kd6 {[%emt 00:00:13]} 36. Rxf7 {[%emt 00:00:57]} Rc4+ {[%clk
00:21:44]} {[%emt 00:00:02]} 37. Kd3 {[%clk 00:20:43]} {[%emt 00:00:05]} R4c3+
{[%clk 00:22:08]} {[%emt 00:00:06]} 38. Ke4 {[%clk 00:21:06]} {[%emt 00:00:07]}
Re2 {[%emt 00:00:34]} 39. Rd1+ {[%emt 00:00:27]} Ke6 {[%clk 00:22:35]} {[%emt
00:00:03]} 40. Rd3 {[%emt 00:01:01]} Rc4+ {[%emt 00:00:25]} 41. Kf3 {[%emt
00:00:21]} Rxe3+ {[%emt 00:01:07]} 42. Rxe3+ {[%clk 00:21:02]} {[%emt
00:00:03]} Kxf7 {[%emt 00:00:10]} 43. Kg4 {[%emt 00:00:11]} Kf6 {[%emt
00:05:17]} 44. h4 {[%emt 00:02:20]} Rc1 {[%clk 00:20:22]} {[%emt 00:00:35]} 45.
h5 {[%emt 00:03:30]} Rg1+ {[%clk 00:17:22]} {[%emt 00:00:07]} 46. Rg3 {[%clk
00:17:38]} {[%emt 00:00:03]} Rh1 {[%emt 00:00:23]} 47. Rc3 {[%emt 00:03:11]}
Rg1+ {[%emt 00:00:31]} 48. Kf3 {[%emt 00:00:24]} Rf1+ {[%emt 00:00:30]} 49. Kg3
{[%clk 00:17:26]} Rg1+ {[%emt 00:00:26]} 50. Kf2 {[%emt 00:12:56]} Ra1 {[%emt
00:01:01]} 51. Rc5 {[%emt 00:01:00]} Ra3 {[%clk 00:02:47]} 52. Kg2 {[%emt
00:01:59]} Rd3 {[%emt 00:00:45]} 53. Rg5 {[%emt 00:07:02]} Ra3 {[%emt
00:04:09]} 54. Rc5 {[%emt 00:03:45]} Rb3 {[%emt 00:00:28]} 55. Rg5 {[%emt
00:00:24]} Ra3 {[%emt 00:02:14]} 56. Rg3 {[%emt 00:06:14]} Ra1 {[%emt
00:00:57]} 57. Kf3 {[%emt 00:00:43]} Rf1+ {[%clk 00:16:40]} 58. Kg4 {[%emt
00:01:56]} Rh1 {[%clk 00:14:56]} {[%emt 00:00:21]} 59. Rg2 {[%emt 00:00:40]}
Ra1 {[%emt 00:01:20]} 60. Rc2 {[%clk 00:40:45]} {[%emt 00:00:03]} Rg1+ {[%emt
00:00:18]} 61. Kf3 {[%clk 00:41:15]} {[%emt 00:01:04]} Rf1+ 62. Kg3 {[%emt
00:00:19]} Rg1+ {[%emt 00:00:43]} 63. Kh2 {[%emt 00:01:43]} Ra1 {[%emt
00:02:34]} 64. Rc5 {[%emt 00:00:23]} Ra3 {[%emt 00:04:24]} 65. Kg2 {[%emt
00:00:04]} Rb3 {[%emt 00:00:13]} 66. h6 {[%emt 00:03:59]} Kg6 {[%emt 00:00:14]}
67. Rxc6+ {[%clk 00:35:44]} {[%emt 00:00:02]} Kh7 {[%emt 00:01:08]} 68. f5
{[%emt 00:00:06]} Ra3 {[%emt 00:00:27]} 69. Rg6 {[%emt 00:00:38]} Ra5 {[%emt
00:00:27]} 70. Rf6 {[%clk 00:35:16]} {[%emt 00:00:06]} Ra3 71. Re6 {[%emt
00:00:47]} Ra5 {[%emt 00:01:00]} 72. f6 {[%emt 00:00:08]} Kxh6 {[%emt
00:00:14]} 73. f7+ {[%emt 00:00:04]} Kg7 {[%emt 00:00:06]} 74. Rf6 {[%clk
00:35:20]} {[%emt 00:00:11]} Kf8 {[%clk 00:13:19]} {[%emt 00:00:06]} 75. Kg3
{[%emt 00:00:05]} Ra7 {[%emt 00:00:05]} 76. Kf4 {[%emt 00:00:02]} Rxf7 {[%clk
00:14:12]} {[%emt 00:00:03]} 77. Rxf7+ {[%emt 00:00:03]} Kxf7 {[%emt 00:00:06]}
78. Ke4 {[%emt 00:00:02]} 1/2-1/2

[ePGN "0.1;DGT LiveChess/2.2.6"]

[Event "XXII Rochefort Chess Masters"]
[Site "ROCHEFORT, France"]
[Date "2024.02.23"]
[Round "9.3"]
[White "Romanov, Evgeny"]
[Black "Dalaud, Dorian"]
[Result "1-0"]
[TimeControl "1h30/40 - 30' + [30'']"]
[WhiteElo "2593"]
[BlackElo "2332"]

1. e4 {[%emt 00:28:05]} c5 {[%clk 01:19:25]} {[%emt 00:04:29]} 2. b3 {[%emt
00:00:51]} g6 {[%clk 01:18:55]} {[%emt 00:00:25]} 3. Bb2 {[%clk 01:30:16]}
{[%emt 00:00:34]} Nf6 {[%emt 00:19:25]} 4. e5 {[%clk 01:11:01]} {[%emt
00:00:27]} Nd5 {[%emt 00:00:55]} 5. e6 {[%clk 01:10:52]} {[%emt 00:00:30]} f6
{[%clk 01:19:16]} {[%emt 00:00:15]} 6. exd7+ {[%clk 01:11:08]} {[%emt
00:00:14]} Qxd7 {[%emt 00:01:35]} 7. h4 {[%emt 00:06:35]} Nc6 {[%clk 01:09:50]}
{[%emt 00:03:41]} 8. h5 {[%emt 00:02:06]} g5 {[%emt 00:02:38]} 9. Bc4 {[%emt
00:06:32]} Qd6 {[%emt 00:09:17]} 10. Nc3 {[%emt 00:18:27]} Nxc3 {[%clk
00:43:20]} {[%emt 00:00:09]} 11. dxc3 {[%clk 01:00:53]} {[%emt 00:00:11]} Qe5+
{[%emt 00:03:35]} 12. Qe2 {[%clk 00:57:20]} {[%emt 00:00:58]} Bg4 {[%clk
00:43:13]} {[%emt 00:00:38]} 13. f3 {[%clk 00:56:37]} {[%emt 00:01:13]} Bd7
{[%clk 00:43:10]} {[%emt 00:00:34]} 14. O-O-O {[%emt 00:02:15]} O-O-O {[%emt
00:10:04]} 15. Qf2 {[%emt 00:08:24]} g4 {[%emt 00:16:50]} 16. Kb1 {[%emt
00:05:38]} Bh6 {[%clk 00:24:52]} {[%emt 00:00:05]} 17. Ne2 {[%clk 00:34:41]}
{[%emt 00:00:28]} gxf3 {[%clk 00:24:54]} {[%emt 00:00:29]} 18. gxf3 {[%emt
00:04:40]} Bf5 {[%emt 00:03:31]} 19. f4 {[%emt 00:03:23]} Bxc2+ {[%emt
00:07:25]} 20. Kxc2 {[%emt 00:00:39]} Qe4+ {[%clk 00:11:42]} {[%emt 00:00:03]}
21. Kc1 {[%clk 00:30:50]} {[%emt 00:00:51]} e5 {[%emt 00:05:56]} 22. Qh4 {[%clk
00:16:53]} {[%emt 00:08:50]} Rhf8 {[%clk 00:07:09]} {[%emt 00:05:15]} 23. Qh3+
{[%clk 00:16:29]} {[%emt 00:00:53]} Kb8 {[%clk 00:07:26]} {[%emt 00:00:14]} 24.
Bd3 {[%clk 00:16:26]} {[%emt 00:00:32]} Bxf4+ {[%emt 00:05:16]} 25. Kc2 {[%emt
00:01:28]} 1-0

[Event "XXII Rochefort Chess Masters"]
[Site "ROCHEFORT, France"]
[Date "2024.02.23"]
[Round "9.1"]
[White "Mullon, Jean-Baptiste"]
[Black "Sivuk, Vitaly"]
[Result "0-1"]
[TimeControl "1h30/40 - 30' + [30'']"]
[WhiteElo "2304"]
[BlackElo "2520"]

1. e4 {[%emt 00:10:36]} c6 {[%emt 00:03:28]} 2. d4 {[%clk 01:30:23]} {[%emt
00:00:18]} d5 {[%clk 01:18:06]} {[%emt 00:00:07]} 3. Nc3 {[%clk 01:30:44]}
{[%emt 00:00:09]} dxe4 {[%clk 01:18:26]} {[%emt 00:00:09]} 4. Nxe4 {[%clk
01:31:08]} {[%emt 00:00:06]} Nd7 {[%emt 00:01:22]} 5. Bc4 {[%emt 00:00:46]}
Ngf6 {[%clk 01:18:32]} {[%emt 00:00:19]} 6. Nxf6+ {[%clk 01:30:24]} {[%emt
00:00:12]} Nxf6 {[%clk 01:18:51]} {[%emt 00:00:11]} 7. c3 {[%emt 00:03:15]} Qc7
{[%emt 00:00:34]} 8. Qe2 {[%emt 00:04:31]} Bg4 {[%clk 01:11:38]} {[%emt
00:00:32]} 9. f3 {[%emt 00:02:06]} Bf5 {[%clk 01:10:12]} {[%emt 00:00:07]} 10.
g4 {[%clk 01:31:16]} {[%emt 00:00:11]} Bd7 {[%emt 00:11:17]} 11. Nh3 {[%emt
00:07:03]} Nd5 {[%emt 00:09:15]} 12. Bb3 {[%emt 00:09:00]} h5 {[%emt 00:20:49]}
13. Ng5 {[%emt 00:02:10]} e6 {[%emt 00:04:47]} 14. Bd2 {[%emt 00:07:37]} Be7
{[%emt 00:06:07]} 15. Bxd5 {[%clk 00:39:26]} {[%emt 00:01:05]} cxd5 {[%clk
00:47:35]} {[%emt 00:00:49]} 16. O-O-O {[%emt 00:03:23]} a5 {[%emt 00:17:38]}
17. Kb1 {[%clk 00:21:56]} {[%emt 00:00:35]} b5 {[%emt 00:03:27]} 18. h4 {[%emt
00:02:04]} Qc4 {[%clk 00:40:17]} {[%emt 00:03:26]} 19. Qe3 {[%clk 00:18:41]}
{[%emt 00:00:59]} b4 {[%emt 00:07:11]} 20. Rhe1 {[%emt 00:03:13]} b3 {[%emt
00:03:49]} 21. Bc1 {[%clk 00:11:48]} {[%emt 00:00:05]} bxa2+ {[%clk 00:34:22]}
{[%emt 00:01:00]} 22. Ka1 {[%emt 00:00:18]} Ra6 {[%emt 00:00:16]} 23. Qf4
{[%clk 00:12:25]} {[%emt 00:00:20]} f6 {[%emt 00:00:56]} 24. Nh3 {[%clk
00:12:09]} {[%emt 00:00:24]} a4 {[%emt 00:02:13]} 25. Qb8+ {[%emt 00:03:25]}
Bd8 {[%clk 00:30:02]} {[%emt 00:02:01]} 26. Nf4 {[%clk 00:09:39]} {[%emt
00:01:06]} a3 {[%emt 00:02:37]} 27. Qb7 {[%emt 00:05:21]} Rd6 {[%clk 00:24:01]}
{[%emt 00:00:57]} 28. gxh5 {[%emt 00:05:26]} axb2+ {[%clk 00:19:32]} {[%emt
00:00:36]} 29. Bxb2 {[%emt 00:00:22]} Rh7 {[%clk 00:18:06]} {[%emt 00:01:38]}
30. h6 {[%emt 00:02:33]} Rxh6 {[%emt 00:04:56]} 31. Nxe6 {[%emt 00:01:26]} Rxe6
{[%clk 00:14:54]} {[%emt 00:00:11]} 32. Rxe6+ {[%clk 00:04:28]} {[%emt
00:00:17]} Bxe6 {[%emt 00:00:55]} 33. Re1 {[%clk 00:02:55]} {[%emt 00:01:15]}
f5 {[%clk 00:15:27]} {[%emt 00:00:21]} 34. Qxg7 {[%clk 00:03:21]} {[%emt
00:00:04]} Rf6 {[%clk 00:15:48]} {[%emt 00:00:09]} 35. h5 {[%clk 00:03:40]}
{[%emt 00:00:12]} Qc7 {[%emt 00:00:57]} 36. Qh8+ {[%emt 00:00:35]} Kd7 {[%clk
00:15:31]} {[%emt 00:00:19]} 37. h6 {[%clk 00:03:27]} {[%emt 00:00:37]} Qg3
{[%emt 00:02:43]} 38. Rh1 {[%clk 00:01:36]} {[%emt 00:00:35]} Qg2 {[%clk
00:14:57]} {[%emt 00:00:38]} 39. Rh5 {[%emt 00:01:56]} Bf7 {[%emt 00:01:14]} 40.
Qh7 {[%emt 00:01:04]} Be7 {[%emt 00:02:06]} 0-1